bitfinex/quotes_BTCUSD_20260310
["timestamp","ask_amount","ask_price","bid_price","bid_amount"]
[1773129033516,0.07118565,70457.0,70448.0,0.17938394]
[1773129033723,0.07118565,70457.0,70449.0,0.01147079]
[1773129034171,0.07118537,70457.0,70449.0,0.01147079]
[1773129034904,0.10096628,70456.0,70450.0,0.07097232]
[1773129035840,0.10096628,70456.0,70450.0,0.07241232]
[1773129036042,0.07096377,70459.0,70450.0,0.07241232]
[1773129036428,0.07117758,70465.0,70453.0,0.17938394]
[1773129036633,0.07117758,70465.0,70450.0,0.07241232]
[1773129036634,0.07117755,70465.0,70455.0,0.01147079]
[1773129036810,0.07117755,70465.0,70456.0,0.00144]
[1773129037215,0.03,70464.0,70456.0,0.00144]
[1773129037583,0.00022001,70465.0,70457.0,0.01147079]
[1773129037791,0.0017208,70473.0,70456.0,0.00144]
[1773129037792,0.07123031,70473.0,70458.0,0.17938394]
[1773129038052,0.0002808,70473.0,70463.0,0.17938394]
[1773129038226,0.0002808,70473.0,70465.0,0.01147079]
[1773129038635,0.1012302,70473.0,70466.0,0.01147079]
[1773129038869,0.1012302,70473.0,70448.0,0.20867646]
[1773129038870,0.03,70471.0,70465.0,0.00144]
[1773129040059,0.03,70471.0,70460.0,0.07096224]
[1773129040060,0.03,70469.0,70460.0,0.07096224]
[1773129040426,0.03,70469.0,70461.0,0.00144]
[1773129040624,0.03,70469.0,70459.0,0.08243399]
[1773129040778,0.03,70467.0,70460.0,0.00144]
[1773129041101,0.0301158,70467.0,70461.0,0.00144]
[1773129041328,0.0301158,70467.0,70451.0,0.17938394]
[1773129041532,0.03,70461.0,70452.0,0.00144]
[1773129041831,0.03,70461.0,70449.0,0.08284547]
[1773129041963,0.03,70461.0,70449.0,0.0002]
[1773129042165,0.04151313,70461.0,70449.0,0.0002]
[1773129042479,0.03,70459.0,70449.0,0.0002]
[1773129042899,0.03,70459.0,70450.0,0.01167302]
[1773129043152,0.00144,70470.0,70454.0,0.01167302]
[1773129043334,0.03144,70470.0,70457.0,0.17938394]
[1773129043661,0.03,70470.0,70459.0,0.17938394]
[1773129043861,0.07117044,70472.0,70462.0,0.19105696]
[1773129044069,0.07117044,70472.0,70463.0,0.00144]
[1773129044270,0.07117044,70472.0,70464.0,0.00144]
[1773129044552,0.03,70469.0,70451.0,0.07097131]
[1773129044769,0.07117044,70472.0,70452.0,0.01311302]
[1773129044770,0.03,70467.0,70452.0,0.01311302]
[1773129044909,0.03,70467.0,70452.0,0.01167302]
[1773129045252,0.04151313,70465.0,70453.0,0.00144]
[1773129045690,0.07117032,70472.0,70455.0,0.01167302]
[1773129045833,0.01151313,70471.0,70456.0,0.00144]
[1773129046033,0.00022001,70461.0,70456.0,0.00144]
[1773129046490,0.00022001,70461.0,70457.0,0.07096526]
[1773129048532,0.07095133,70471.0,70457.0,0.07096526]
[1773129048729,0.07095133,70471.0,70458.0,0.17938394]
[1773129049095,0.07095218,70470.0,70458.0,0.17938394]
[1773129049314,0.00022001,70472.0,70458.0,0.17938394]
[1773129049516,0.03,70473.0,70458.0,0.17938394]
[1773129049922,0.03,70473.0,70460.0,0.18456127]
[1773129050319,0.10094951,70473.0,70460.0,0.18456127]
[1773129050551,0.03,70473.0,70460.0,0.18456127]
[1773129050771,0.10094916,70473.0,70460.0,0.18456127]
[1773129050972,0.03,70473.0,70460.0,0.18456127]
[1773129051757,0.000443,70475.0,70460.0,0.18456127]
[1773129051758,0.030443,70475.0,70460.0,0.18456127]
[1773129051941,0.1013902,70475.0,70462.0,0.18456127]
[1773129052178,0.030443,70475.0,70464.0,0.18456127]
[1773129052743,0.07238388,70479.0,70464.0,0.18456127]
[1773129053004,0.03,70478.0,70464.0,0.18456127]
[1773129053193,0.02388382,70481.0,70463.0,0.00144]
[1773129053194,1e-08,70487.0,70470.0,0.18456127]
[1773129053403,1e-08,70487.0,70472.0,0.18456127]
[1773129053607,1e-08,70487.0,70471.0,0.00144]
[1773129053608,1e-08,70487.0,70474.0,0.18456127]
[1773129053994,1e-08,70487.0,70476.0,0.18456127]
[1773129054205,0.03,70493.0,70476.0,0.18456127]
[1773129054412,0.07091635,70506.0,70478.0,0.18456127]
[1773129054602,0.0709184,70504.0,70480.0,0.18456127]
[1773129054814,0.00022001,70487.0,70480.0,0.18456127]
[1773129055010,0.03,70493.0,70481.0,0.00144]
[1773129055192,0.03,70493.0,70481.0,0.18600127]
[1773129055562,0.03,70493.0,70482.0,0.18600127]
[1773129055763,0.07092128,70501.0,70476.0,0.22370639]
[1773129055764,0.02388382,70524.0,70500.0,0.16110751]
[1773129055910,0.03,70523.0,70502.0,0.07091997]
[1773129056259,0.03,70523.0,70503.0,0.18456127]
[1773129057059,0.03,70522.0,70503.0,0.18456127]
[1773129057937,0.03,70522.0,70504.0,0.07091796]
[1773129058127,0.03,70523.0,70505.0,0.18456127]
[1773129059041,0.03,70522.0,70505.0,0.18456127]
[1773129059258,0.03,70520.0,70505.0,0.18556127]
[1773129059709,0.0003215,70540.0,70505.0,0.18556127]
[1773129059913,0.01973207,70553.0,70525.0,0.00023]
[1773129060149,0.0003215,70558.0,70526.0,0.07233583]
[1773129060150,0.03,70549.0,70526.0,0.07233583]
[1773129060398,0.18020761,70540.0,70525.0,0.00023]
[1773129060564,0.03,70533.0,70525.0,0.07112602]
[1773129061596,0.00144,70536.0,70525.0,0.07112602]
[1773129061807,0.03,70534.0,70525.0,0.07112602]
[1773129062037,0.03,70528.0,70517.0,0.07090488]
[1773129062249,0.03,70528.0,70518.0,0.00144]
[1773129062862,0.03,70528.0,70516.0,0.07652546]
[1773129062863,0.01108628,70523.0,70516.0,0.07652546]
[1773129063064,0.04108628,70522.0,70516.0,0.07652546]
[1773129063511,0.00144,70531.0,70511.0,0.00144]
[1773129063512,0.03,70520.0,70511.0,0.00144]
[1773129063722,0.04108628,70518.0,70508.0,0.00144]
[1773129063921,0.00144,70525.0,70509.0,0.18507819]
[1773129064073,0.01252628,70525.0,70510.0,0.07091192]
[1773129064724,0.04108628,70524.0,70510.0,0.07091192]
[1773129064958,0.03,70522.0,70510.0,0.07091192]
[1773129065289,0.03,70518.0,70510.0,0.07091192]
[1773129065418,0.04108628,70518.0,70510.0,0.07091192]
[1773129066382,0.03,70515.0,70503.0,0.07091894]
[1773129066581,0.03,70511.0,70504.0,0.00144]
[1773129066781,0.03,70511.0,70502.0,0.07091796]
[1773129067402,0.03,70511.0,70500.0,0.28003891]
[1773129067403,0.03,70509.0,70500.0,0.20767794]
[1773129067681,0.03,70509.0,70497.0,0.070925]
[1773129067682,0.03,70503.0,70497.0,0.070925]
[1773129068095,0.00144,70512.0,70488.0,0.07655322]
[1773129068096,0.01108628,70500.0,70488.0,0.07655322]
[1773129068261,0.03,70495.0,70488.0,0.07799322]
[1773129069502,0.1801389,70505.0,70488.0,0.07799322]
[1773129069703,0.23199987,70530.0,70491.0,0.18507819]
[1773129069704,0.01719931,70516.0,70491.0,0.18507819]
[1773129069903,0.01719931,70514.0,70491.0,0.18507819]
[1773129070243,0.01719931,70512.0,70491.0,0.18507819]
[1773129070638,0.01719931,70510.0,70493.0,0.18507819]
[1773129070987,0.00144,70509.0,70495.0,0.18507819]
[1773129071616,0.01863931,70509.0,70495.0,0.18507819]
[1773129072542,0.01863931,70509.0,70497.0,0.070925]
[1773129072901,0.01719931,70508.0,70494.0,0.07092774]
[1773129073177,0.1801389,70505.0,70492.0,0.07092987]
[1773129073385,0.01719931,70504.0,70492.0,0.07092987]
[1773129073586,0.01719931,70502.0,70491.0,0.07093003]
[1773129075517,0.01719931,70502.0,70460.0,0.00562]
[1773129075518,0.01719931,70499.0,70460.0,0.00562]
[1773129075719,0.07092039,70502.0,70465.0,0.37503748]
[1773129075720,0.286418,70493.0,70465.0,0.37503748]
[1773129075947,0.01719931,70488.0,70465.0,0.18995929]
[1773129076149,0.286418,70490.0,70465.0,0.18995929]
[1773129076150,0.01719931,70486.0,70466.0,0.18507819]
[1773129076371,0.01719931,70484.0,70466.0,0.18507819]
[1773129076571,0.1801389,70487.0,70466.0,0.18507819]
[1773129076572,0.00144,70483.0,70466.0,0.18507819]
[1773129076810,0.01719931,70482.0,70466.0,0.18507819]
[1773129077005,0.01719931,70482.0,70465.0,0.18995929]
[1773129077238,0.01719931,70480.0,70465.0,0.18995929]
[1773129077643,0.01719931,70480.0,70466.0,0.18507819]
[1773129079330,0.01719931,70478.0,70467.0,0.07095519]
[1773129079546,0.00144,70477.0,70467.0,0.07095519]
[1773129079746,0.03144,70477.0,70467.0,0.07095519]
[1773129079958,0.03,70475.0,70467.0,0.07095519]
[1773129080093,0.03,70471.0,70465.0,0.18995953]
[1773129080301,0.04719931,70471.0,70465.0,0.19015953]
[1773129081960,0.04719931,70471.0,70464.0,0.00015]
[1773129081961,0.03,70468.0,70464.0,0.00015]
[1773129082195,0.00144,70470.0,70462.0,0.07095991]
[1773129082196,0.03,70464.0,70462.0,0.07095991]
[1773129082548,0.04719931,70464.0,70462.0,0.07095991]
[1773129083149,0.03144,70470.0,70460.0,0.07658224]
[1773129083394,0.03,70466.0,70455.0,0.07096714]
[1773129083576,0.03,70460.0,70455.0,0.07096714]
[1773129083782,0.03,70454.0,70451.0,0.07097131]
[1773129084004,0.03,70454.0,70445.0,0.18507819]
[1773129084177,0.01719931,70457.0,70446.0,0.07097608]
[1773129084178,0.01719931,70449.0,70446.0,0.07097608]
[1773129084377,0.03,70446.0,70444.0,0.07097811]
[1773129085224,0.03,70446.0,70442.0,0.0004267]
[1773129085421,0.04719931,70442.0,70438.0,0.07098401]
[1773129085792,0.04719931,70442.0,70440.0,0.07098218]
[1773129085992,0.04719931,70442.0,70439.0,0.0709832]
[1773129086295,0.04719931,70438.0,70437.0,0.07118503]
[1773129086614,0.03,70438.0,70437.0,0.07118503]
[1773129087244,0.01719931,70443.0,70437.0,0.07118503]
[1773129087443,0.03,70442.0,70437.0,0.07118503]
[1773129087660,0.03,70442.0,70437.0,0.25626322]
[1773129088174,0.04719931,70442.0,70437.0,0.0002]
[1773129088327,0.03,70443.0,70437.0,0.0002]
[1773129088747,0.03,70443.0,70437.0,0.07118512]
[1773129088941,0.03,70443.0,70437.0,0.0002]
[1773129090190,0.1181794,70443.0,70437.0,0.0002]
[1773129090392,0.1181794,70443.0,70437.0,0.080269]
[1773129090964,0.03,70439.0,70437.0,0.080269]
[1773129091136,0.04719931,70439.0,70437.0,0.080269]
[1773129091722,0.03,70439.0,70437.0,0.080269]
[1773129091923,0.07098009,70443.0,70437.0,0.26534719]
[1773129092123,0.07242009,70443.0,70437.0,0.26534719]
[1773129092340,0.07242009,70443.0,70437.0,0.080269]
[1773129092543,0.07096627,70456.0,70439.0,0.01342296]
[1773129092780,0.00144,70455.0,70442.0,0.18507819]
[1773129093074,0.00144,70454.0,70444.0,0.19850115]
[1773129093464,0.00144,70455.0,70444.0,0.18507819]
[1773129093665,0.00144,70455.0,70445.0,0.20219838]
[1773129093865,0.00144,70455.0,70445.0,0.18877542]
[1773129094049,0.00144,70455.0,70446.0,0.20219838]
[1773129094665,0.07095016,70472.0,70447.0,0.07097534]
[1773129094869,0.00144,70471.0,70452.0,0.01342296]
[1773129095234,0.00144,70471.0,70450.0,0.16110751]
[1773129095235,0.00144,70471.0,70455.0,0.20219838]
[1773129095416,0.01527815,70471.0,70455.0,0.18877542]
[1773129095556,0.00144,70472.0,70458.0,0.01342296]
[1773129095790,0.03,70472.0,70460.0,0.20219838]
[1773129095986,0.01383815,70469.0,70455.0,0.00144]
[1773129096192,0.03,70468.0,70455.0,0.00144]
[1773129096601,0.10095438,70468.0,70456.0,0.07096627]
[1773129096952,0.10095438,70468.0,70457.0,0.00144]
[1773129097125,0.03,70468.0,70457.0,0.00144]
[1773129097326,0.03,70468.0,70456.0,0.07240627]
[1773129097484,0.03,70468.0,70456.0,0.27460465]
[1773129097687,0.03,70467.0,70456.0,0.07240627]
[1773129097888,0.03,70467.0,70456.0,0.27460465]
[1773129098647,0.03,70466.0,70456.0,0.07240627]
[1773129098788,0.03,70466.0,70457.0,0.20219838]
[1773129099803,0.03,70468.0,70457.0,0.20219838]
[1773129100214,0.03,70468.0,70458.0,0.01801519]
[1773129100848,0.03,70469.0,70459.0,0.07096325]
[1773129101258,0.10095337,70469.0,70459.0,0.07096325]
[1773129101633,0.10095327,70469.0,70459.0,0.07096325]
[1773129102675,0.11929019,70469.0,70459.0,0.07096325]
[1773129103072,0.11929019,70469.0,70458.0,0.07096325]
[1773129103278,0.03,70465.0,70452.0,0.00144]
[1773129103480,0.03,70463.0,70452.0,0.00144]
[1773129103897,0.03,70463.0,70452.0,0.18877542]
[1773129104096,0.03,70463.0,70453.0,0.01801519]
[1773129104452,0.03,70462.0,70453.0,0.20679061]
[1773129104570,0.03,70462.0,70454.0,0.01801519]
[1773129105208,0.1009606,70462.0,70454.0,0.0889827]
[1773129106941,0.1009606,70462.0,70454.0,0.07096751]
[1773129107178,0.07095997,70463.0,70455.0,0.01801519]
[1773129107714,0.10095227,70470.0,70459.0,0.18877542]
[1773129107938,0.00144,70468.0,70461.0,0.01801519]
[1773129108323,0.10095227,70470.0,70461.0,0.01801519]
[1773129108529,0.00144,70469.0,70461.0,0.01801519]
[1773129111033,0.03,70468.0,70461.0,0.08897573]
[1773129112288,0.03,70468.0,70461.0,0.01801519]
[1773129112490,0.03,70468.0,70457.0,0.07096526]
[1773129113089,0.03,70466.0,70456.0,0.0709657]
[1773129113490,0.03,70466.0,70456.0,0.08906955]
[1773129113912,0.03,70466.0,70457.0,0.18309826]
[1773129114089,0.03,70467.0,70458.0,0.01810385]
[1773129114811,0.00022001,70466.0,70458.0,0.01810385]
[1773129116827,0.00022001,70466.0,70459.0,0.07096325]
[1773129117027,0.03,70465.0,70459.0,0.07096325]
[1773129117880,0.03,70465.0,70456.0,0.0709657]
[1773129118081,0.03,70465.0,70431.0,0.0002]
[1773129118082,0.03,70465.0,70450.0,0.15104057]
[1773129118274,0.03,70461.0,70451.0,0.07097131]
[1773129118455,0.07117644,70466.0,70451.0,0.07241131]
[1773129118456,0.00022001,70466.0,70451.0,0.07241131]
[1773129118754,0.00144,70465.0,70454.0,0.18309826]
[1773129119052,0.00144,70467.0,70457.0,0.08906911]
[1773129119201,0.03144,70467.0,70457.0,0.08906911]
[1773129119673,0.02253254,70473.0,70459.0,0.01810385]
[1773129119879,0.02253254,70473.0,70458.0,0.00144]
[1773129119880,0.02253254,70473.0,70462.0,0.18309826]
[1773129120072,0.02253254,70473.0,70458.0,0.00144]
[1773129120073,0.02253254,70473.0,70463.0,0.01810385]
[1773129120478,0.02253254,70473.0,70457.0,0.07096526]
[1773129120479,0.03,70472.0,70457.0,0.07096526]
[1773129120677,0.03,70468.0,70458.0,0.00144]
[1773129120911,0.10095509,70468.0,70459.0,0.07096325]
[1773129121736,0.03,70468.0,70459.0,0.07096325]
[1773129122863,0.07095173,70471.0,70459.0,0.07096325]
[1773129123059,0.00144,70471.0,70460.0,0.18309826]
[1773129123219,0.00144,70471.0,70462.0,0.01810385]
[1773129123446,0.00022001,70474.0,70463.0,0.18831662]
[1773129123619,0.07116884,70474.0,70465.0,0.20642047]
[1773129123861,0.03,70473.0,70465.0,0.01810385]
[1773129124065,0.08392803,70478.0,70465.0,0.18831662]
[1773129124361,0.08392803,70478.0,70466.0,0.01810385]
[1773129124754,0.08536803,70478.0,70466.0,0.01810385]
[1773129124965,0.03022001,70477.0,70466.0,0.01810385]
[1773129125164,0.03022001,70477.0,70467.0,0.07095519]
[1773129125481,0.03022001,70477.0,70467.0,0.08905904]
[1773129126743,0.00144,70479.0,70469.0,0.01810385]
[1773129127157,0.10094043,70482.0,70470.0,0.07095217]
[1773129127361,0.07093062,70492.0,70472.0,0.18831662]
[1773129127638,0.07093062,70492.0,70476.0,0.18831662]
[1773129127639,0.03,70487.0,70476.0,0.18831662]
[1773129127864,0.03,70487.0,70470.0,0.07095217]
[1773129127865,0.03,70485.0,70470.0,0.07095217]
[1773129128064,0.03,70485.0,70470.0,0.08905602]
[1773129128267,0.03,70485.0,70471.0,0.01954385]
[1773129128846,0.03,70484.0,70472.0,0.00144]
[1773129129048,0.01870534,70488.0,70474.0,0.01810385]
[1773129129265,0.01870534,70488.0,70475.0,0.07094714]
[1773129129570,0.01870534,70488.0,70476.0,0.00144]
[1773129129988,0.00144,70490.0,70477.0,0.01885037]
[1773129130203,0.00144,70490.0,70479.0,0.01885037]
[1773129131170,0.03,70489.0,70477.0,0.07094513]
[1773129132628,0.03,70487.0,70478.0,0.01885037]
[1773129133012,0.00022001,70485.0,70477.0,0.07094513]
[1773129134241,0.03,70482.0,70468.0,0.07095362]
[1773129134437,0.03,70480.0,70468.0,0.00144]
[1773129134638,0.03,70480.0,70468.0,0.02029037]
[1773129134847,0.03,70480.0,70468.0,0.01885037]
[1773129135159,0.03,70480.0,70468.0,0.02029037]
[1773129135397,0.03,70479.0,70468.0,0.00144]
[1773129135592,0.03,70479.0,70468.0,0.070954]
[1773129135593,0.03,70475.0,70468.0,0.070954]
[1773129136245,0.03,70475.0,70466.0,0.07095217]
[1773129136669,0.03,70475.0,70466.0,0.07239217]
[1773129136988,0.04858176,70475.0,70462.0,0.07096023]
[1773129137194,0.03,70473.0,70461.0,0.0002]
[1773129137399,0.03,70471.0,70461.0,0.0002]
[1773129137632,0.03,70465.0,70457.0,0.0709651]
[1773129137801,0.03,70465.0,70457.0,0.0724051]
[1773129138054,0.03,70465.0,70457.0,0.0709651]
[1773129138265,0.03,70465.0,70456.0,0.07240606]
[1773129139811,0.10095723,70465.0,70452.0,0.0709703]
[1773129140018,0.03,70463.0,70452.0,0.0709703]
[1773129140659,0.03,70463.0,70452.0,0.0724103]
[1773129141492,0.03,70464.0,70452.0,0.0724103]
[1773129142004,0.03,70462.0,70452.0,0.0726103]
[1773129142508,0.03,70462.0,70454.0,0.20716699]
[1773129143013,0.03,70461.0,70454.0,0.20716699]
[1773129143530,0.03,70461.0,70455.0,0.00144]
[1773129144071,0.03,70459.0,70455.0,0.00144]
[1773129144286,0.03,70459.0,70455.0,0.07240723]
[1773129144694,0.03,70457.0,70451.0,0.0002]
[1773129144930,0.03,70457.0,70450.0,0.07120173]
[1773129145498,0.01858176,70466.0,70450.0,0.14217396]
[1773129145612,0.00144,70470.0,70453.0,0.18831662]
[1773129145817,0.03144,70470.0,70456.0,0.01885037]
[1773129146021,0.03,70468.0,70457.0,0.07096526]
[1773129146233,0.03,70468.0,70456.0,0.01885037]
[1773129146458,0.03,70464.0,70456.0,0.00144]
[1773129148475,0.03,70463.0,70456.0,0.07240618]
[1773129149472,0.03,70463.0,70456.0,0.00144]
[1773129150279,0.03,70463.0,70452.0,0.0002]
[1773129150473,0.03,70457.0,70450.0,0.07120173]
[1773129150675,0.04858176,70457.0,70450.0,0.07120173]
[1773129151130,0.04858176,70457.0,70450.0,0.1421739]
[1773129151519,0.03,70459.0,70450.0,0.1421739]
[1773129152510,0.03,70457.0,70450.0,0.1421739]
[1773129153761,0.03,70457.0,70450.0,0.07120173]
[1773129154478,0.10096627,70456.0,70450.0,0.07120173]
[1773129154676,0.03,70456.0,70450.0,0.07120173]
[1773129155202,0.03,70456.0,70450.0,0.14217385]
[1773129155549,0.03,70456.0,70450.0,0.07120173]
[1773129156386,0.03,70456.0,70446.0,0.0002]
[1773129156387,0.04858176,70456.0,70446.0,0.0002]
[1773129156638,0.03,70454.0,70446.0,0.0002]
[1773129157257,0.03,70450.0,70436.0,0.07098579]
[1773129157477,0.03,70448.0,70438.0,0.07262385]
[1773129157694,0.03,70448.0,70441.0,0.01885037]
[1773129157875,0.00144,70455.0,70444.0,0.17804234]
[1773129158024,0.08953997,70464.0,70447.0,0.01885037]
[1773129158224,0.02002176,70463.0,70447.0,0.01885037]
[1773129158431,0.04858176,70462.0,70447.0,0.01885037]
[1773129158659,0.03,70460.0,70447.0,0.08982477]
[1773129159296,0.00144,70459.0,70450.0,0.17804234]
[1773129159493,0.00144,70459.0,70451.0,0.19713572]
[1773129159701,0.03,70459.0,70451.0,0.19713572]
[1773129160617,0.03,70458.0,70452.0,0.0709703]
[1773129161002,0.03,70458.0,70452.0,0.09006368]
[1773129161200,0.06316025,70460.0,70452.0,0.09006368]
[1773129161403,0.00144,70462.0,70452.0,0.0709703]
[1773129163149,0.03,70461.0,70451.0,0.07097064]
[1773129165136,0.03,70461.0,70453.0,0.07096929]
[1773129165513,0.07262045,70462.0,70453.0,0.07096929]
[1773129165514,0.03,70460.0,70453.0,0.07096929]
[1773129165963,0.00022001,70465.0,70454.0,0.1990583]
[1773129166259,0.07117786,70465.0,70457.0,0.02101596]
[1773129166790,0.03,70464.0,70457.0,0.02101596]
[1773129167012,0.07095439,70468.0,70457.0,0.02101596]
[1773129167013,0.07094882,70474.0,70457.0,0.02101596]
[1773129167213,0.07239016,70472.0,70461.0,0.02101596]
[1773129167570,0.07095016,70472.0,70461.0,0.02101596]
[1773129167772,0.03,70471.0,70461.0,0.02101596]
[1773129168125,0.01356925,70476.0,70464.0,0.17804234]
[1773129168126,0.00167,70475.0,70464.0,0.17804234]
[1773129168276,0.07261778,70475.0,70466.0,0.02108379]
[1773129168481,0.00023,70475.0,70466.0,0.02108379]
[1773129168871,0.03023,70475.0,70466.0,0.02108379]
[1773129169281,0.03023,70475.0,70468.0,0.02108379]
[1773129169678,0.07238693,70476.0,70468.0,0.02108379]
[1773129170347,0.07094693,70476.0,70468.0,0.02108379]
[1773129170535,0.07094693,70476.0,70468.0,0.02208379]
[1773129170847,0.07094693,70476.0,70468.0,0.02108379]
[1773129172129,0.07094693,70476.0,70467.0,0.07095519]
[1773129173035,0.07116694,70476.0,70467.0,0.07095519]
[1773129174304,0.07116694,70476.0,70466.0,0.0212225]
[1773129174889,0.07116694,70476.0,70467.0,0.0212225]
[1773129175595,0.07116694,70476.0,70467.0,5.0212225]
[1773129175791,0.07116694,70476.0,70467.0,4.80181264]
[1773129176000,0.07116694,70476.0,70467.0,3.46664746]
[1773129176146,0.07116694,70476.0,70467.0,2.50071913]
[1773129176344,0.00082871,70475.0,70467.0,2.49640694]
[1773129177600,0.03,70473.0,70467.0,2.49640694]
[1773129177828,0.03,70470.0,70467.0,2.49640694]
[1773129178799,0.00144,70469.0,70467.0,2.49640694]
[1773129180096,0.07116625,70476.0,70468.0,0.07095419]
[1773129180457,0.07116633,70476.0,70467.0,2.77753842]
[1773129180656,0.00144,70475.0,70467.0,2.77753842]
[1773129181239,0.00144,70475.0,70467.0,2.49640694]
[1773129182058,0.07094815,70474.0,70467.0,2.49640694]
[1773129184055,0.01041884,70472.0,70467.0,1.38075394]
[1773129184228,0.01041884,70472.0,70467.0,1.34848608]
[1773129184638,0.01041884,70472.0,70467.0,1.330559]
[1773129184838,0.01041884,70472.0,70467.0,1.23777505]
[1773129185041,0.01041884,70472.0,70467.0,1.15480505]
[1773129185749,0.01241884,70472.0,70467.0,1.15480505]
[1773129185948,0.01141884,70472.0,70467.0,1.15480505]
[1773129186353,0.08712051,70471.0,70467.0,1.15480505]
[1773129186548,0.08712051,70471.0,70467.0,0.74140394]
[1773129186549,0.01616934,70470.0,70467.0,0.74140394]
[1773129186788,0.01616934,70468.0,70467.0,0.74140394]
[1773129186989,0.01760934,70469.0,70467.0,0.63877294]
[1773129187191,0.01760934,70469.0,70467.0,0.63087054]
[1773129187788,0.01760934,70469.0,70467.0,0.44000633]
[1773129187988,0.01760934,70469.0,70467.0,0.34902946]
[1773129188379,0.07095419,70468.0,70467.0,0.34902946]
[1773129188981,0.10095419,70468.0,70467.0,0.32529946]
[1773129189577,0.10295419,70468.0,70467.0,0.32529946]
[1773129189891,0.10195419,70468.0,70467.0,0.32529946]
[1773129190088,0.10195419,70468.0,70467.0,0.23325046]
[1773129190292,0.10295419,70468.0,70467.0,0.23325046]
[1773129191095,0.10295419,70468.0,70467.0,0.14047846]
[1773129191360,0.10295419,70468.0,70457.0,0.0002]
[1773129192333,0.05088248,70466.0,70457.0,0.0002]
[1773129192534,0.03,70464.0,70457.0,0.0002]
[1773129192739,0.02088248,70460.0,70449.0,0.0002]
[1773129192947,0.03,70459.0,70444.0,0.20583703]
[1773129193277,0.09175737,70471.0,70450.0,0.20583703]
[1773129193407,0.07095117,70473.0,70459.0,0.23512523]
[1773129193595,0.00144,70470.0,70459.0,0.23512523]
[1773129193998,0.03,70468.0,70459.0,0.0002]
[1773129194639,0.00144,70467.0,70459.0,0.0002]
[1773129195427,0.03,70466.0,70459.0,0.0002]
[1773129196566,0.10095667,70466.0,70459.0,0.0002]
[1773129196799,0.10195667,70466.0,70459.0,0.0002]
[1773129196994,0.10195667,70466.0,70459.0,5.0002]
[1773129197190,0.031,70466.0,70459.0,5.0002]
[1773129198078,0.10295637,70466.0,70459.0,5.0002]
[1773129200523,0.1232163,70466.0,70459.0,5.0002]
[1773129201110,0.10295637,70466.0,70459.0,5.0002]
[1773129201287,0.03,70462.0,70459.0,5.0002]
[1773129201472,0.00144,70461.0,70459.0,5.0002]
[1773129201675,0.05017776,70460.0,70459.0,4.14501892]
[1773129202637,0.03,70460.0,70459.0,4.14501892]
[1773129203040,0.031,70460.0,70459.0,4.14501892]
[1773129203828,0.10196224,70460.0,70459.0,4.14501892]
[1773129204033,0.070958,70465.0,70459.0,4.14501892]
[1773129204239,0.07095821,70464.0,70459.0,4.14501892]
[1773129204449,0.00144,70463.0,70459.0,4.21598206]
[1773129204656,0.07095127,70471.0,70460.0,0.23791604]
[1773129204989,0.07095127,70471.0,70460.0,0.30887776]
[1773129204990,0.03,70469.0,70460.0,0.30887776]
[1773129205140,0.07139721,70475.0,70461.0,0.20805184]
[1773129205340,0.07238815,70474.0,70463.0,0.20805184]
[1773129205584,0.00144,70473.0,70463.0,0.20805184]
[1773129205985,0.02395592,70472.0,70460.0,0.07096172]
[1773129206283,0.03,70469.0,70459.0,4.14501892]
[1773129206851,0.03,70465.0,70459.0,4.14501892]
[1773129207052,0.03,70462.0,70459.0,4.02703404]
[1773129207301,0.0537791,70460.0,70459.0,4.02703404]
[1773129208713,0.0537791,70460.0,70459.0,4.02723404]
[1773129209119,0.0537791,70460.0,70459.0,3.96768504]
[1773129210795,0.0537791,70460.0,70459.0,3.89668204]
[1773129211019,0.0537791,70460.0,70459.0,3.52424603]
[1773129212061,0.0537791,70460.0,70459.0,3.35800103]
[1773129212939,0.0537791,70460.0,70459.0,3.20515603]
[1773129213135,0.0537791,70460.0,70459.0,3.20435603]
[1773129213350,0.0537791,70460.0,70459.0,3.17415603]
[1773129213548,0.12474134,70460.0,70459.0,2.3609867]
[1773129213726,0.12474134,70460.0,70459.0,2.21282318]
[1773129213927,0.12474134,70460.0,70459.0,2.16857018]
[1773129214753,0.12574134,70460.0,70459.0,2.16857018]
[1773129214949,0.12574134,70460.0,70459.0,2.07777918]
[1773129215182,0.12574134,70460.0,70459.0,2.06237918]
[1773129215339,0.12574134,70460.0,70459.0,2.04717918]
[1773129215743,0.12574134,70460.0,70459.0,1.56640227]
[1773129215944,0.12574134,70460.0,70459.0,1.48912427]
[1773129216145,0.12574134,70460.0,70451.0,0.0002]
[1773129216146,0.03,70458.0,70451.0,0.0002]
[1773129216386,0.44771324,70459.0,70437.0,0.29101182]
[1773129216387,0.03,70451.0,70437.0,0.29101182]
[1773129216544,0.03,70449.0,70435.0,0.07118731]
[1773129216743,0.03,70445.0,70435.0,0.07118731]
[1773129217264,0.06090728,70443.0,70435.0,0.0002]
[1773129218579,0.13188713,70443.0,70435.0,0.0002]
[1773129219098,0.03,70441.0,70435.0,0.0002]
[1773129219454,0.10098193,70441.0,70435.0,0.0002]
[1773129219653,0.14126738,70441.0,70435.0,0.0002]
[1773129219957,0.03,70439.0,70435.0,0.0002]
[1773129220275,0.07028545,70436.0,70429.0,0.0002]
[1773129220484,0.03,70434.0,70416.0,0.0002007]
[1773129220813,0.03,70428.0,70416.0,0.0002007]
[1773129221103,0.03,70425.0,70416.0,0.0002007]
[1773129221637,0.03,70419.0,70408.0,0.07101465]
[1773129221763,0.00144,70418.0,70408.0,0.07101465]
[1773129222632,0.03144,70418.0,70409.0,0.26254888]
[1773129223464,0.03144,70418.0,70409.0,0.22166933]
[1773129223796,0.00144,70418.0,70410.0,0.07101264]
[1773129224179,0.00144,70418.0,70408.0,0.07101428]
[1773129224923,0.00144,70418.0,70408.0,0.29268361]
[1773129225131,0.00144,70418.0,70408.0,0.07101428]
[1773129225303,0.00144,70418.0,70409.0,0.22166933]
[1773129226255,0.00144,70418.0,70409.0,0.29268236]
[1773129227108,0.00144,70418.0,70410.0,0.22166933]
[1773129227930,0.00144,70418.0,70405.0,0.25060214]
[1773129228908,0.00144,70418.0,70409.0,0.0002]
[1773129229903,0.00144,70418.0,70410.0,0.07101264]